[Event "Australian-ch 2018"]
[Site "Sydney"]
[Date "2018.01.10"]
[Round "9"]
[White "Kargosha, Bahman"]
[Black "Brown, Andrew"]
[Result "1-0"]
[ECO "E58"]
[WhiteElo "2210"]
[BlackElo "2293"]
[PlyCount "141"]
[EventDate "2018.01.02"]
[EventType "tourn"]
[EventCountry "AUS"]
[TimeControl "40/5400+30:1800+30"]

1. d4 Nf6 {[%emt 0:00:09]} 2. c4 {[%emt 0:00:00]} e6 {[%emt 0:00:05]} 3. Nc3 {[%emt 0:00:00]} Bb4 {[%emt 0:00:05]} 4. e3 {[%emt 0:00:00]} O-O {[%emt 0:01:07]} 5. Bd3 {[%emt 0:00:13]} c5 {[%emt 0:02:56]} 6. Nf3 {[%emt 0:00:13]} d5 {[%emt 0:00:55]} 7. O-O {[%emt 0:00:15]} Nc6 {[%emt 0:00:24]} 8. a3 {[%emt 0:00:11]} Bxc3 {[%emt 0:00:06]} 9. bxc3 {[%emt 0:00:06]} Qc7 {[%emt 0:01:08]} 10. Bb2 {[%emt 0:01:26]} dxc4 {[%emt 0:05:30]} 11. Bxc4 {[%emt 0:00:16]} e5 {[%emt 0:00:44]} 12. Be2 {[%emt 0:03:34]} Rd8 {[%emt 0:00:30]} 13. Qc2 {[%emt 0:00:30]} Bg4 {[%emt 0:10:30]} 14. dxe5 {[%emt 0:07:19]} Nxe5 {[%emt 0:01:39]} 15. c4 {[%emt 0:00:29]} Nxf3+ {[%emt 0:03:49]} 16. Bxf3 {[%emt 0:12:12]} Bxf3 {[%emt 0:00:46]} 17. gxf3 {[%emt 0:02:30]} Qc6 {[%emt 0:02:32]} 18. Qf5 {[%emt 0:00:30]} Qe6 {[%emt 0:11:05]} 19. Qxe6 {[%emt 0:13:30]} fxe6 {[%emt 0:00:12]} 20. Rfd1 {[%emt 0:02:41]} Nd7 {[%emt 0:05:42]} 21. Bc3 {[%emt 0:14:47]} Nb6 {[%emt 0:01:11]} 22. Rxd8+ {[%emt 0:00:11]} Rxd8 {[%emt 0:00:07]} 23. Ba5 {[%emt 0:00:08]} Rd6 {[%emt 0:01:04]} 24. Bxb6 {[%emt 0:04:15]} Rxb6 {[%emt 0:00:37]} 25. Rd1 {[%emt 0:00:07]} Ra6 {[%emt 0:01:37]} 26. Rd8+ {[%emt 0:02:37]} Kf7 {[%emt 0:00:09]} 27. Rd7+ {[%emt 0:00:04]} Kf6 {[%emt 0:00:12]} 28. Rxb7 {[%emt 0:00:10]} Ra4 {[%emt 0:20:08]} 29. Rb5 {[%emt 0:04:54]} Rxc4 {[%emt 0:00:25]} 30. Ra5 {[%emt 0:00:05]} g5 {[%emt 0:01:23]} 31. Rxa7 {[%emt 0:00:36]} h5 {[%emt 0:00:06]} 32. a4 {[%emt 0:03:03]} Ke5 {[%emt 0:05:33]} 33. a5 {[%emt 0:04:53]} Kd6 34. a6 Ra4 {[%emt 0:02:29]} 35. Ra8 {[%emt 0:18:18]} Kc6 {[%emt 0:03:21]} 36. a7 {[%emt 0:02:54]} Kb6 {[%emt 0:01:17]} 37. Rg8 {[%emt 0:01:22]} Rxa7 {[%emt 0:00:12]} 38. Rxg5 {[%emt 0:00:15]} Ra1+ {[%emt 0:03:24]} 39. Kg2 {[%emt 0:00:10]} c4 {[%emt 0:00:40]} 40. Rg8 {[%emt 0:03:54]} Kc5 {[%emt 0:01:41]} 41. f4 {[%emt 0:03:44]} c3 {[%emt 0:00:30]} 42. Kf3 {[%emt 0:00:24]} Kc4 {[%emt 0:23:09]} 43. Rc8+ {[%emt 0:07:45]} Kb3 {[%emt 0:04:46]} 44. Rb8+ {[%emt 0:02:38]} Ka3 {[%emt 0:00:49]} 45. Ra8+ {[%emt 0:06:46]} Kb2 46. Rb8+ {[%emt 0:01:59]} Kc1 {[%emt 0:00:32]} 47. e4 {[%emt 0:00:30]} c2 {[%emt 0:07:15]} 48. f5 {[%emt 0:05:27]} e5 {[%emt 0:01:51]} 49. Ke2 {[%emt 0:03:27]} Rb1 {[%emt 0:00:42]} 50. Rc8 {[%emt 0:00:06]} Rb4 {[%emt 0:03:11]} 51. Kd3 {[%emt 0:01:54]} Rd4+ {[%emt 0:02:33]} 52. Ke3 {[%emt 0:00:20]} Kb2 53. f4 {[%emt 0:01:09]} Rd8 {[%emt 0:05:36]} 54. Rxc2+ {[%emt 0:00:29]} Kxc2 {[%emt 0:00:05]} 55. fxe5 {[%emt 0:00:06]} Rd1 {[%emt 0:00:32]} 56. e6 {[%emt 0:00:22]} Re1+ {[%emt 0:00:03]} 57. Kd4 {[%emt 0:00:37]} Rd1+ {[%emt 0:00:19]} 58. Kc4 {[%emt 0:02:02]} Re1 {[%emt 0:00:22]} 59. f6 {[%emt 0:00:28]} Rxe4+ {[%emt 0:00:39]} 60. Kd5 {[%emt 0:00:03]} Kd3 {[%emt 0:00:37]} 61. f7 {[%emt 0:00:17]} Rf4 {[%emt 0:00:37]} 62. e7 {[%emt 0:01:10]} Rxf7 {[%emt 0:00:15]} 63. e8=Q {[%emt 0:00:08]} Rf5+ {[%emt 0:00:16]} 64. Ke6 {[%emt 0:00:45]} Rc5 {[%emt 0:00:22]} 65. Qg6+ {[%emt 0:00:23]} Kd4 {[%emt 0:00:26]} 66. Qg1+ {[%emt 0:00:22]} Kc4 {[%emt 0:00:05]} 67. Qe3 {[%emt 0:00:45]} Rb5 {[%emt 0:00:49]} 68. Qe2+ {[%emt 0:00:21]} Kb4 {[%emt 0:00:05]} 69. h4 {[%emt 0:00:36]} Rc5 {[%emt 0:00:30]} 70. Kf6 {[%emt 0:00:30]} Kc3 {[%emt 0:00:30]} 71. Kg6 {[%emt 0:00:30]} 1-0

[Event "Australian-ch 2018"]
[Site "Sydney"]
[Date "2018.01.10"]
[Round "9"]
[White "Yang, Ray"]
[Black "Zhang, Jilin"]
[Result "1/2-1/2"]
[ECO "A57"]
[WhiteElo "2003"]
[BlackElo "2267"]
[PlyCount "141"]
[EventDate "2018.01.02"]
[EventType "tourn"]
[EventCountry "AUS"]
[TimeControl "40/5400+30:1800+30"]

1. d4 {[%emt 0:00:00]} Nf6 {[%emt 0:02:37]} 2. c4 {[%emt 0:00:48]} c5 {[%emt 0:00:10]} 3. d5 {[%emt 0:00:08]} b5 {[%emt 0:00:09]} 4. Qc2 {[%emt 0:00:49]} e6 {[%emt 0:07:10]} 5. e4 {[%emt 0:00:55]} bxc4 {[%emt 0:02:41]} 6. Bxc4 {[%emt 0:00:25]} exd5 {[%emt 0:03:13]} 7. exd5 {[%emt 0:00:15]} d6 {[%emt 0:00:09]} 8. Ne2 {[%emt 0:04:08]} Nbd7 {[%emt 0:08:53]} 9. Nec3 {[%emt 0:22:41]} Be7 {[%emt 0:04:56]} 10. O-O {[%emt 0:02:22]} O-O {[%emt 0:00:22]} 11. Be2 {[%emt 0:08:02]} Bb7 {[%emt 0:05:49]} 12. Rd1 {[%emt 0:00:22]} Re8 {[%emt 0:02:22]} 13. Na3 {[%emt 0:01:59]} Nb6 {[%emt 0:08:36]} 14. Bf3 {[%emt 0:00:08]} h6 {[%emt 0:05:18]} 15. b3 {[%emt 0:15:20]} Ba6 {[%emt 0:06:13]} 16. Nab5 {[%emt 0:00:34]} Nh7 {[%emt 0:12:44]} 17. Bb2 {[%emt 0:03:16]} Bf6 {[%emt 0:01:15]} 18. a4 {[%emt 0:03:54]} Be5 {[%emt 0:01:26]} 19. Ne4 {[%emt 0:08:15]} Bxb5 {[%emt 0:05:39]} 20. axb5 {[%emt 0:00:11]} Nf6 {[%emt 0:04:07]} 21. Bxe5 {[%emt 0:09:10]} Rxe5 {[%emt 0:00:05]} 22. Nd2 {[%emt 0:01:13]} Qd7 {[%emt 0:04:51]} 23. Nc4 {[%emt 0:01:07]} Ree8 {[%emt 0:00:02]} 24. g3 {[%emt 0:02:10]} Rab8 {[%emt 0:01:34]} 25. Na5 {[%emt 0:02:58]} Nc8 {[%emt 0:05:04]} 26. Be2 {[%emt 0:00:40]} Qh3 {[%emt 0:00:22]} 27. Nc6 {[%emt 0:02:45]} Rb7 {[%emt 0:00:33]} 28. Bf1 {[%emt 0:01:30]} Qh5 {[%emt 0:00:02]} 29. Bg2 {[%emt 0:03:03]} Rxb5 {[%emt 0:00:52]} 30. Nxa7 {[%emt 0:01:43]} Nxa7 {[%emt 0:03:27]} 31. Rxa7 {[%emt 0:00:03]} Reb8 {[%emt 0:00:19]} 32. Rd3 {[%emt 0:01:06]} Ng4 {[%emt 0:02:20]} 33. h3 {[%emt 0:00:12]} Ne5 {[%emt 0:00:03]} 34. Re3 {[%emt 0:00:54]} c4 {[%emt 0:00:13]} 35. g4 {[%emt 0:00:31]} Qh4 {[%emt 0:01:16]} 36. bxc4 {[%emt 0:01:18]} Rb1+ {[%emt 0:01:07]} 37. Bf1 {[%emt 0:00:06]} h5 {[%emt 0:00:47]} 38. Qf5 {[%emt 0:02:26]} Qf6 {[%emt 0:01:55]} 39. Qxf6 {[%emt 0:00:29]} gxf6 {[%emt 0:00:00]} 40. Kg2 {[%emt 0:00:45]} hxg4 {[%emt 0:30:43]} 41. hxg4 {[%emt 0:30:06]} Rc1 {[%emt 0:00:00]} 42. Ra6 {[%emt 0:00:00]} Nxc4 {[%emt 0:00:00]} 43. Bxc4 {[%emt 0:00:00]} Rxc4 {[%emt 0:00:00]} 44. Rxd6 {[%emt 0:00:00]} Rxg4+ {[%emt 0:00:00]} 45. Kf3 {[%emt 0:00:00]} Rd4 {[%emt 0:00:00]} 46. Re4 {[%emt 0:00:00]} Rd2 {[%emt 0:00:00]} 47. Rf4 {[%emt 0:00:00]} Kg7 {[%emt 0:00:00]} 48. Rdxf6 {[%emt 0:00:00]} Rxd5 {[%emt 0:00:00]} 49. Rxf7+ {[%emt 0:00:00]} Kg6 {[%emt 0:00:00]} 50. Ra7 {[%emt 0:00:00]} Rf5 {[%emt 0:00:00]} 51. Ra6+ {[%emt 0:00:00]} Kg5 {[%emt 0:00:00]} 52. Rxf5+ {[%emt 0:00:00]} Kxf5 {[%emt 0:00:00]} 53. Ra5+ {[%emt 0:00:00]} Kf6 {[%emt 0:00:00]} 54. Kg4 {[%emt 0:00:00]} Rb6 {[%emt 0:00:00]} 55. Rf5+ {[%emt 0:00:00]} Kg6 {[%emt 0:00:00]} 56. Rg5+ {[%emt 0:00:00]} Kf6 {[%emt 0:00:00]} 57. Rh5 {[%emt 0:00:00]} Kg6 {[%emt 0:00:00]} 58. f4 {[%emt 0:00:00]} Ra6 {[%emt 0:00:00]} 59. f5+ {[%emt 0:00:00]} Kg7 {[%emt 0:00:00]} 60. Kg5 {[%emt 0:00:00]} Rb6 {[%emt 0:00:00]} 61. Rh4 {[%emt 0:00:00]} Ra6 {[%emt 0:00:00]} 62. Re4 {[%emt 0:00:00]} Kf7 {[%emt 0:00:00]} 63. Re5 {[%emt 0:00:00]} Rb6 {[%emt 0:00:00]} 64. Ra5 {[%emt 0:00:00]} Rc6 {[%emt 0:00:00]} 65. Ra7+ {[%emt 0:00:00]} Kf8 {[%emt 0:00:00]} 66. f6 {[%emt 0:00:00]} Rc1 {[%emt 0:00:00]} 67. Kf5 {[%emt 0:00:00]} Rf1+ {[%emt 0:00:00]} 68. Kg5 {[%emt 0:00:00]} Rg1+ {[%emt 0:00:00]} 69. Kf5 {[%emt 0:00:00]} Rf1+ {[%emt 0:00:00]} 70. Kg5 {[%emt 0:00:00]} Rg1+ {[%emt 0:00:00]} 71. Kf5 {[%emt 0:00:00]} 1/2-1/2

[Event "Australian-ch 2018"]
[Site "Sydney"]
[Date "2018.01.10"]
[Round "9.9"]
[White "Puccini, Jack"]
[Black "Nakauchi, Gene"]
[Result "0-1"]
[ECO "A00"]
[WhiteElo "2278"]
[BlackElo "2208"]
[PlyCount "82"]
[EventDate "2018.01.02"]
[EventType "tourn"]
[EventCountry "AUS"]
[TimeControl "40/5400+30:1800+30"]

1. e4 c5 2. d4 cxd4 3. c3 dxc3 4. Nxc3 a6 5. Bc4 e6 6. Nf3 Ne7 7. Be3 Ng6 8. O-O d6 9. Qb3 Be7 10. Bb6 Qd7 11. Nd4 Nc6 12. Rad1 Nxd4 13. Rxd4 O-O 14. f4 Kh8 15. g3 e5 16. Rd3 exf4 17. gxf4 Bh4 18. Nd5 Qg4+ 19. Kh1 f5 20. Qc3 fxe4 21. Bd4 Rg8 22. Re3 Be6 23. Rxe4 Rac8 24. Qd3 Rxc4 25. Qxc4 Ne7 26. Rxe6 Qxe6 27. Ne3 Qe4+ 28. Kg1 Nc6 29. Bb6 Qg6+ 30. Kh1 Re8 31. f5 Qh5 32. Qf4 Bf6 33. Qxd6 Bxb2 34. Qg3 Be5 35. Qg2 Nd4 36. Ng4 Nxf5 37. Nxe5 Rxe5 38. Bd4 Re7 39. Qf2 Nh6 40. Qf8+ Ng8 41. Qd8 Qg4 0-1

[Event "Australian-ch 2018"]
[Site "Sydney"]
[Date "2018.01.10"]
[Round "9.11"]
[White "Ferozkohi, Ihsan"]
[Black "Huynh, Arthur"]
[Result "1/2-1/2"]
[ECO "E17"]
[WhiteElo "2130"]
[BlackElo "2042"]
[PlyCount "153"]
[EventDate "2018.01.02"]
[EventType "tourn"]
[EventCountry "AUS"]
[TimeControl "40/5400+30:1800+30"]

1. d4 Nf6 2. c4 e6 3. Nf3 b6 4. g3 Ba6 5. Qc2 c5 6. Bg2 Bb7 7. dxc5 bxc5 8. O-O Be7 9. Nc3 O-O 10. Rd1 d6 11. Qb3 Qc8 12. Bf4 Rd8 13. Rd2 Nh5 14. Be3 Nd7 15. Rad1 Rb8 16. Qc2 a6 17. Ng5 Nf8 18. Nge4 Qc7 19. b3 f5 20. Ng5 Bxg2 21. Kxg2 h6 22. Nxe6 Nxe6 23. Qxf5 Ng5 24. h4 Qb7+ 25. Nd5 Rf8 26. Qg6 Nxg3 27. Kxg3 Nf7 28. Bf4 Rbe8 29. f3 Bd8 30. e4 Qd7 31. Ne3 Re6 32. Qg4 Kh7 33. Kh2 g6 34. Kg2 Rg8 35. Kf2 Qe7 36. Bg3 Rf8 37. Nd5 Qe8 38. Nf4 Rf6 39. Nd5 Rxf3+ 40. Kg2 Ne5 41. Bxe5 Qxe5 42. Qxf3 Rxf3 43. Kxf3 Bxh4 44. Rg2 Qh5+ (44... Bg5) 45. Rg4 Bg5 46. Kg3 Kg7 47. Rf1 Bd8 48. Nf4 Qe5 49. Rxg6+ Kh7 50. Re6 Qc3+ 51. Kg4 Qd2 52. Rf3 Bg5 53. Nh5 Qg2+ 54. Rg3 Qxa2 55. Rxd6 Qe2+ 56. Rf3 Qxe4+ 57. Nf4 h5+ 58. Kxg5 Qe5+ 59. Kh4 Qxd6 60. Kxh5 Qd1 61. Kg4 Kg8 62. Nd5 a5 63. Kg3 Kg7 64. Kg4 Kh6 65. Kg3 Kg5 66. Rf5+ Kxf5 67. Ne3+ Ke4 68. Nxd1 Kd3 69. Nb2+ Kc3 70. Na4+ Kxb3 71. Nxc5+ Kxc4 72. Na4 Kb5 73. Nb2 Kb4 74. Kf3 Kb3 75. Nd3 Kc3 76. Nc5 Kc4 77. Ke3 1/2-1/2

[Event "Australian-ch 2018"]
[Site "Sydney"]
[Date "2018.01.10"]
[Round "9.12"]
[White "O'Connell, Kevin J"]
[Black "Leaver, Kyle"]
[Result "1-0"]
[ECO "A00"]
[WhiteElo "2328"]
[BlackElo "1973"]
[PlyCount "115"]
[EventDate "2018.01.02"]
[EventType "tourn"]
[EventCountry "AUS"]
[TimeControl "40/5400+30:1800+30"]

1. e4 e6 2. d4 d5 3. Nc3 Nf6 4. Bg5 Bb4 5. e5 h6 6. Bd2 Bxc3 7. bxc3 Ne4 8. Qg4 Kf8 9. h4 c5 10. Bd3 Nxd2 11. Kxd2 Nc6 12. Rh3 c4 13. Be2 b5 14. Rg3 Rh7 15. Qf4 Bd7 16. Bh5 Be8 17. Rf3 Qe7 18. a3 Kg8 19. Ne2 a5 20. Rh3 Rb8 21. Qe3 b4 22. axb4 axb4 23. cxb4 Qxb4+ 24. Qc3 Qxc3+ 25. Rxc3 f5 26. Bxe8 Rxe8 27. h5 Rh8 28. Ra6 Rc8 29. Rg3 Kf7 30. Nf4 Rhe8 31. Rg6 Re7 32. c3 Nd8 33. g4 fxg4 34. Rxg4 Rb8 35. Ng6 Re8 36. Kc2 Rb7 37. Rg1 Kg8 38. Ra8 Kf7 39. Rc8 Rb6 40. Rc7+ Kg8 41. Ne7+ Kh8 42. Rxg7 Kxg7 43. Nxd5+ Kh8 44. Nxb6 Rf8 45. Nxc4 Rxf2+ 46. Kb3 Nf7 47. Nd6 Ng5 48. Ne8 Kg8 49. Nf6+ Kf8 50. Nh7+ Ke8 51. Nxg5 hxg5 52. h6 Rh2 53. h7 Kf8 54. Kc4 Rh3 55. Rc8+ Kg7 56. h8=Q+ Rxh8 57. Rxh8 Kxh8 58. Kd3 1-0

[Event "Australian-ch 2018"]
[Site "Sydney"]
[Date "2018.01.10"]
[Round "9.13"]
[White "Asaka, Samuel"]
[Black "Hardegen, Andrew"]
[Result "1-0"]
[ECO "A00"]
[WhiteElo "1959"]
[BlackElo "1999"]
[PlyCount "85"]
[EventDate "2018.01.02"]
[EventType "tourn"]
[EventCountry "AUS"]
[TimeControl "40/5400+30:1800+30"]

1. d4 d5 2. c4 c6 3. cxd5 cxd5 4. Bf4 Nc6 5. e3 Nf6 6. Nc3 Bg4 7. Qb3 Na5 8. Qa4+ Bd7 9. Qc2 Rc8 10. Bd3 b5 11. a3 e6 12. Nf3 Nc4 13. O-O Be7 14. h3 O-O 15. Ne5 h6 16. Qe2 a6 17. Rfc1 Qa5 18. a4 b4 19. Nd1 Nxe5 20. dxe5 Ne4 21. b3 Rxc1 22. Rxc1 Rc8 23. Rb1 Rc6 24. Qg4 Kf8 25. f3 Nc3 26. Ra1 Nxd1 27. Rxd1 Rc3 28. Bh7 g5 29. h4 Qc5 30. Rd4 Rxb3 31. hxg5 hxg5 32. Bxg5 Bxg5 33. Qxg5 Qc1+ 34. Kh2 Qxe3 35. Qd8+ Be8 36. Qd6+ Kg7 37. Rg4+ Kxh7 38. Rh4+ Kg7 39. Rg4+ Kh7 40. Rh4+ Kg7 {Black offered a draw.} 41. Qe7 Qxe5+ 42. f4 Qa1 43. Rg4+ 1-0

[Event "Australian-ch 2018"]
[Site "Sydney"]
[Date "2018.01.10"]
[Round "9.14"]
[White "Reilly, Tim"]
[Black "Parle, Hughston"]
[Result "1-0"]
[ECO "A00"]
[WhiteElo "2169"]
[BlackElo "1961"]
[PlyCount "77"]
[EventDate "2018.01.02"]
[EventType "tourn"]
[EventCountry "AUS"]
[TimeControl "40/5400+30:1800+30"]

1. d4 Nf6 2. c4 g6 3. Nc3 d5 4. Nf3 Bg7 5. Qb3 dxc4 6. Qxc4 O-O 7. e4 a6 8. Be2 b5 9. Qb3 c5 10. dxc5 Bb7 11. e5 Nfd7 12. Be3 Nxe5 13. Nxe5 Bxe5 14. O-O e6 15. a4 b4 16. Qxb4 Qe7 17. Rac1 Nc6 18. Qc4 Rad8 19. b4 Nd4 20. b5 Bd5 21. Nxd5 Rxd5 22. f4 Nf5 23. Bf2 Rd4 24. Bxd4 Bxd4+ 25. Kh1 Qh4 26. Rf3 Bf2 27. Rh3 Qf6 28. c6 axb5 29. axb5 Ne3 30. Qc3 Qxc3 31. Rxc3 Nd5 32. Rcf3 Bc5 33. g4 Ra8 34. Rf1 Bb6 35. Rd3 Ra2 36. Bf3 Nxf4 37. Rd7 Kg7 38. c7 Rc2 39. Bc6 1-0

[Event "Australian-ch 2018"]
[Site "Sydney"]
[Date "2018.01.10"]
[Round "9.15"]
[White "McNamara, Gary"]
[Black "Winkelman, Albert"]
[Result "1/2-1/2"]
[ECO "A00"]
[WhiteElo "2134"]
[BlackElo "2017"]
[PlyCount "76"]
[EventDate "2018.01.02"]
[EventType "tourn"]
[EventCountry "AUS"]
[TimeControl "40/5400+30:1800+30"]

1. e4 e5 2. Nf3 Nc6 3. Nc3 Nf6 4. d4 exd4 5. Nxd4 Bb4 6. Nxc6 bxc6 7. Bd3 d5 8. exd5 cxd5 9. O-O O-O 10. h3 c6 11. Qf3 a5 12. Bg5 Bd6 13. Rad1 Re8 14. Ne2 Be5 15. b3 h6 16. Bf4 Qc7 17. c4 Bb7 18. Bxe5 Qxe5 19. Qg3 Qe7 20. Nd4 Ne4 21. Nf5 Nxg3 22. Nxe7+ Rxe7 23. fxg3 d4 24. c5 a4 25. b4 a3 26. Bc4 Ba6 27. Bxa6 Rxa6 28. Rxd4 Re2 29. Rc1 Rb2 30. Rd8+ Kh7 31. Rb8 Ra7 32. b5 Re7 33. b6 Ree2 34. Rc8 Rxg2+ 35. Kh1 Rh2+ 36. Kg1 Rbg2+ 37. Kf1 Rxa2 38. Kg1 Rag2+ 1/2-1/2

[Event "Australian-ch 2018"]
[Site "Sydney"]
[Date "2018.01.10"]
[Round "9.16"]
[White "Wright, Neil S"]
[Black "Willathgamuwa, Rowan"]
[Result "1/2-1/2"]
[ECO "B21"]
[WhiteElo "2126"]
[BlackElo "1980"]
[PlyCount "132"]
[EventDate "2018.01.02"]
[EventType "tourn"]
[EventCountry "AUS"]
[TimeControl "40/5400+30:1800+30"]

1. e4 c5 2. d4 cxd4 3. c3 dxc3 4. Nxc3 Nc6 5. Nf3 d6 6. Bc4 a6 7. O-O Nf6 8. Bf4 Bg4 9. h3 Bh5 10. Qb3 Qd7 11. Be2 e5 12. Bg5 Bxf3 13. Bxf3 Nd4 14. Qd1 Be7 15. Bxf6 Bxf6 16. Bg4 Ne6 17. Nd5 Bd8 18. a4 O-O 19. f4 exf4 20. Nxf4 Bg5 21. Nd5 Qd8 22. Ra3 b5 23. Raf3 Nc5 24. axb5 axb5 25. Qe2 Nd7 26. Rb3 Nf6 27. Rxb5 Rb8 28. Rf5 Rxb5 29. Nxf6+ Bxf6 30. Rxb5 Qa8 31. Qf1 Qxe4 32. Bf3 Qe3+ 33. Kh1 Rc8 34. Rd5 Rc1 35. Rd1 Rxd1 36. Bxd1 Bxb2 37. Qe2 Qxe2 38. Bxe2 f6 39. Bc4+ Kf8 40. g4 g6 41. Kg2 Kg7 42. Be6 h5 43. Kf3 Kh6 44. Ke4 Kg5 45. Bf7 f5+ 46. gxf5 gxf5+ 47. Kf3 h4 48. Bg8 Kf6 49. Bd5 Ke5 50. Bg8 Bc1 51. Bf7 Bf4 52. Bg8 d5 53. Bf7 Bg3 54. Bg8 f4 55. Bh7 Kd4 56. Ke2 Kc3 57. Bg6 d4 58. Bh7 Bh2 59. Bg6 Bg1 60. Bh7 d3+ 61. Bxd3 f3+ 62. Kxf3 Kxd3 63. Kg2 Bc5 64. Kh1 Ke3 65. Kg2 Kf4 66. Kh1 Kg3 1/2-1/2

[Event "Australian-ch 2018"]
[Site "Sydney"]
[Date "2018.01.11"]
[Round "10"]
[White "Dale, Ari"]
[Black "Solomon, Stephen J"]
[Result "1-0"]
[ECO "E46"]
[WhiteElo "2356"]
[BlackElo "2365"]
[Annotator "ChessBase"]
[PlyCount "121"]
[EventDate "2018.01.02"]
[EventType "tourn"]
[EventCountry "AUS"]
[SourceTitle "playchess.com"]
[Source "ChessBase"]
[SourceQuality "1"]
[TimeControl "40/5400+30:1800+30"]

1. d4 {[%emt 0:00:00]} Nf6 {[%emt 0:00:08]} 2. c4 {[%emt 0:00:00]} e6 {[%emt 0:00:08]} 3. Nc3 {[%emt 0:00:00]} Bb4 {[%emt 0:00:15]} 4. e3 {[%emt 0:00:00]} O-O {[%emt 0:00:29]} 5. Nge2 {[%emt 0:01:27]} d5 {[%emt 0:00:20]} 6. a3 {[%emt 0:00:08]} Be7 {[%emt 0:00:12]} 7. cxd5 {[%emt 0:00:57]} exd5 {[%emt 0:00:10]} 8. b4 {[%emt 0:01:49]} c6 {[%emt 0:11:17]} 9. Ng3 {[%emt 0:01:16]} Re8 {[%emt 0:03:41]} 10. Bd3 {[%emt 0:01:19]} Nbd7 {[%emt 0:05:47]} 11. O-O {[%emt 0:05:08]} a5 {[%emt 0:09:32]} 12. b5 {[%emt 0:02:56]} c5 {[%emt 0:00:10]} 13. Nf5 {[%emt 0:09:28]} Bf8 {[%emt 0:03:14]} 14. Qf3 {[%emt 0:05:19]} g6 {[%emt 0:05:56]} 15. Ng3 {[%emt 0:13:28]} Bg7 {[%emt 0:02:22]} 16. Nxd5 {[%emt 0:06:46]} Nxd5 {[%emt 0:05:30]} 17. Qxd5 {[%emt 0:00:04]} cxd4 {[%emt 0:00:23]} 18. Bb2 {[%emt 0:12:24]} Ne5 {[%emt 0:15:28]} 19. Be4 {[%emt 0:09:31]} dxe3 {[%emt 0:14:47]} 20. fxe3 {[%emt 0:00:53]} Be6 {[%emt 0:07:47]} 21. Qxb7 {[%emt 0:03:56]} Rb8 {[%emt 0:00:51]} 22. Qa7 {[%emt 0:05:19]} Rxb5 {[%emt 0:01:58]} 23. Rad1 {[%emt 0:03:52]} Qb8 {[%emt 0:03:27]} 24. Qxb8 {[%emt 0:01:46]} Rexb8 {[%emt 0:00:11]} 25. Bd4 {[%emt 0:00:04]} h5 {[%emt 0:01:31]} 26. Rb1 {[%emt 0:02:37]} h4 {[%emt 0:03:42]} 27. Ne2 {[%emt 0:00:05]} Bc4 {[%emt 0:00:19]} 28. Nc3 {[%emt 0:00:31]} Bxf1 {[%emt 0:02:55]} 29. Nxb5 {[%emt 0:00:03]} Bxb5 {[%emt 0:01:08]} 30. a4 {[%emt 0:00:03]} Nc4 {[%emt 0:00:19]} 31. Bd3 {[%emt 0:04:47]} Re8 {[%emt 0:01:03]} 32. axb5 {[%emt 0:01:36]} Nxe3 {[%emt 0:00:12]} 33. Bxg7 {[%emt 0:00:11]} Kxg7 {[%emt 0:00:06]} 34. b6 {[%emt 0:00:04]} Kf6 {[%emt 0:01:15]} 35. Re1 {[%emt 0:02:26]} Rb8 {[%emt 0:00:30]} 36. Rxe3 {[%emt 0:00:05]} Rxb6 {[%emt 0:00:04]} 37. Bc4 {[%emt 0:01:13]} Rb7 {[%emt 0:00:41]} 38. Rf3+ {[%emt 0:00:50]} Kg7 {[%emt 0:00:23]} 39. Ra3 {[%emt 0:01:36]} Rc7 {[%emt 0:00:28]} 40. Be2 {[%emt 0:01:15]} Rc5 {[%emt 0:30:14]} 41. Kf2 {[%emt 0:32:39]} Kf6 {[%emt 0:00:00]} 42. Re3 {[%emt 0:00:00]} Kg5 {[%emt 0:00:00]} 43. Rb3 {[%emt 0:00:00]} Re5 {[%emt 0:00:00]} 44. Rb5 {[%emt 0:00:00]} Kf4 {[%emt 0:00:00]} 45. Rxe5 {[%emt 0:00:00]} Kxe5 {[%emt 0:00:00]} 46. Bb5 {[%emt 0:00:00]} f5 {[%emt 0:00:00]} 47. Ke3 {[%emt 0:00:00]} f4+ {[%emt 0:00:40]} 48. Kf3 {[%emt 0:00:00]} h3 {[%emt 0:00:04]} 49. g3 {[%emt 0:00:00]} g5 {[%emt 0:00:15]} 50. Bd7 {[%emt 0:00:00]} Kd6 {[%emt 0:01:03]} 51. Bxh3 {[%emt 0:00:00]} a4 {[%emt 0:01:14]} 52. Bf5 {[%emt 0:00:00]} a3 {[%emt 0:00:23]} 53. Bb1 {[%emt 0:00:00]} Ke5 {[%emt 0:02:06]} 54. Kg4 {[%emt 0:00:00]} Ke6 {[%emt 0:01:38]} 55. Ba2+ {[%emt 0:01:51]} Ke5 {[%emt 0:00:15]} 56. Kf3 {[%emt 0:01:11]} Kf6 {[%emt 0:00:39]} 57. Bb1 {[%emt 0:02:07]} Ke5 {[%emt 0:00:22]} 58. g4 {[%emt 0:02:01]} Ke6 {[%emt 0:00:44]} 59. h4 {[%emt 0:00:31]} Kf6 {[%emt 0:00:05]} 60. hxg5+ {[%emt 0:00:37]} Kxg5 {[%emt 0:00:07]} 61. Ba2 {[%emt 0:00:03]} 1-0

[Event "Australian-ch 2018"]
[Site "Sydney"]
[Date "2018.01.11"]
[Round "10"]
[White "Guichard, Pauline"]
[Black "Xie, George Wendi"]
[Result "1-0"]
[ECO "D00"]
[WhiteElo "2269"]
[BlackElo "2369"]
[Annotator "ChessBase"]
[PlyCount "77"]
[EventDate "2018.01.02"]
[EventType "tourn"]
[EventCountry "AUS"]
[SourceTitle "playchess.com"]
[Source "ChessBase"]
[SourceQuality "1"]
[TimeControl "40/5400+30:1800+30"]

1. d4 d5 2. Bf4 c5 3. e3 Nc6 4. Nf3 Nf6 5. Nbd2 Qb6 6. dxc5 Qxc5 7. c4 e6 8. Rc1 Qb6 9. Qb3 Qxb3 10. Nxb3 Bb4+ 11. Nfd2 e5 12. cxd5 {[%emt 0:23:32]} Nxd5 {[%emt 0:15:42]} 13. Bg3 {[%emt 0:00:16]} f6 {[%emt 0:03:55]} 14. a3 {[%emt 0:02:13]} Bxd2+ {[%emt 0:03:29]} 15. Nxd2 {[%emt 0:00:23]} Ke7 {[%emt 0:00:32]} 16. Bd3 {[%emt 0:11:48]} h5 {[%emt 0:03:23]} 17. h4 {[%emt 0:00:17]} Bg4 {[%emt 0:00:07]} 18. f3 {[%emt 0:07:00]} Be6 {[%emt 0:00:35]} 19. Ke2 {[%emt 0:00:06]} Rhd8 {[%emt 0:00:50]} 20. Bg6 {[%emt 0:05:17]} Bf7 {[%emt 0:00:10]} 21. Bxf7 {[%emt 0:02:03]} Kxf7 {[%emt 0:00:01]} 22. Nb3 {[%emt 0:00:22]} Rac8 {[%emt 0:02:42]} 23. Nc5 {[%emt 0:03:31]} Na5 {[%emt 0:01:57]} 24. Be1 {[%emt 0:02:57]} b6 {[%emt 0:02:13]} 25. Bxa5 {[%emt 0:00:56]} bxa5 {[%emt 0:00:03]} 26. Nb7 {[%emt 0:02:48]} Rd7 {[%emt 0:04:06]} 27. Rxc8 {[%emt 0:03:46]} Rxb7 {[%emt 0:00:03]} 28. Rd1 {[%emt 0:00:49]} Ne7 {[%emt 0:00:40]} 29. Rc2 {[%emt 0:00:29]} Nf5 {[%emt 0:00:04]} 30. Rd5 {[%emt 0:01:55]} Rb3 {[%emt 0:00:12]} 31. Rxa5 {[%emt 0:01:22]} Nxe3 {[%emt 0:00:03]} 32. Rxa7+ {[%emt 0:04:15]} Kg6 {[%emt 0:00:05]} 33. Rc3 Rxc3 {[%emt 0:00:22]} 34. bxc3 {[%emt 0:00:17]} Nxg2 {[%emt 0:00:02]} 35. a4 {[%emt 0:02:06]} Nxh4 {[%emt 0:00:05]} 36. a5 {[%emt 0:00:06]} Nf5 {[%emt 0:00:03]} 37. a6 {[%emt 0:00:09]} h4 {[%emt 0:00:02]} 38. Rd7 {[%emt 0:01:36]} h3 {[%emt 0:00:05]} 39. Kf2 {[%emt 0:00:45]} 1-0